bitfinex/quotes_ETHUSD_20251011
["timestamp","ask_amount","ask_price","bid_price","bid_amount"]
[1760209461928,0.1312,3807.9,3807.2,0.1312]
[1760209461929,0.1312,3807.9,3807.7,2.6262548]
[1760209462130,0.1312,3807.9,3807.8,2.62618835]
[1760209463504,0.657,3808.2,3808.1,2.62598146]
[1760209465628,0.657,3808.2,3808.1,2.77044747]
[1760209465821,0.657,3808.2,3808.1,2.75718146]
[1760209467038,0.03281615,3809.1,3808.3,2.62584355]
[1760209467242,0.16401528,3809.2,3808.3,2.62584355]
[1760209467442,0.16401528,3809.2,3808.3,2.75704355]
[1760209468043,0.16401528,3809.2,3807.9,2.62607162]
[1760209468044,0.4337,3808.9,3807.9,2.62611938]
[1760209468236,0.46651787,3808.9,3807.9,2.62611938]
[1760209468614,0.46651787,3808.9,3808.2,2.62590982]
[1760209469048,0.46651787,3808.9,3808.3,2.62584355]
[1760209470148,0.46651787,3808.9,3807.5,2.62633871]
[1760209470366,0.46651787,3808.9,3808.2,2.62589568]
[1760209470570,0.46651787,3808.9,3808.1,2.62596721]
[1760209470769,0.4449,3808.6,3807.6,0.26263387]
[1760209470963,0.4449,3808.7,3808.0,2.62598645]
[1760209471159,0.47771959,3808.7,3807.6,0.26263387]
[1760209471361,0.47771959,3808.7,3808.1,2.62597656]
[1760209471561,0.47771959,3808.7,3808.2,2.6258965]
[1760209471765,0.03281959,3808.7,3808.3,2.62584355]
[1760209471963,2.62542937,3809.0,3807.6,0.26263387]
[1760209472144,2.62523137,3809.2,3808.0,2.62604278]
[1760209472145,0.4449,3808.8,3808.0,2.62604278]
[1760209472344,0.03281959,3808.7,3808.0,2.62604278]
[1760209472675,0.03281959,3808.7,3807.8,2.62617149]
[1760209472676,0.03281959,3808.7,3807.6,0.26263387]
[1760209472845,0.03281959,3808.7,3808.2,2.62590926]
[1760209473673,0.03281959,3808.7,3808.3,2.62584355]
[1760209473855,0.03281959,3808.7,3808.1,2.62591406]
[1760209474055,0.4449,3808.8,3807.6,0.26263387]
[1760209474277,0.47771873,3808.8,3807.6,0.26263387]
[1760209474478,0.47771873,3808.8,3808.1,2.6259504]
[1760209474657,0.47771873,3808.8,3807.6,0.26263387]
[1760209474658,0.47771873,3808.8,3807.1,1.92]
[1760209474852,0.47771873,3808.8,3807.3,0.54429368]
[1760209475066,0.657,3808.4,3808.3,2.62584355]
[1760209475552,0.657,3808.4,3808.2,2.62589794]
[1760209475744,0.657,3808.4,3808.3,2.62584355]
[1760209476150,0.657,3808.4,3808.2,2.62591243]
[1760209476447,0.657,3808.4,3807.9,2.62605663]
[1760209476448,0.657,3808.4,3808.3,2.62584355]
[1760209478573,0.657,3808.4,3808.1,2.6259718]
[1760209478778,0.657,3808.4,3807.9,0.1312]
[1760209478978,0.657,3808.4,3808.3,2.62584355]
[1760209480795,0.657,3808.4,3808.2,2.62590509]
[1760209481252,0.657,3808.4,3808.0,2.6259962]
[1760209481645,0.657,3808.4,3807.7,2.62625677]
[1760209481646,0.47772304,3808.3,3807.7,2.62625677]
[1760209481885,0.60892304,3808.3,3808.0,2.62604365]
[1760209482057,0.4449,3808.2,3808.0,2.62604365]
[1760209482476,0.4449,3808.2,3807.9,2.62611267]
[1760209482652,0.4449,3808.1,3807.9,2.62611267]
[1760209482855,0.4449,3808.0,3807.7,0.1312]
[1760209483157,0.16402304,3808.3,3807.3,2.75770601]
[1760209483158,0.5761,3807.9,3807.3,2.75770601]
[1760209483388,0.5761,3807.9,3807.8,2.62618835]
[1760209483681,0.1312,3807.9,3807.8,2.62618835]
[1760209485786,0.1312,3807.9,3807.7,2.62624057]
[1760209485955,0.1312,3807.9,3807.8,2.62618835]
[1760209486561,0.5834,3807.9,3807.3,0.14447293]
[1760209486786,0.5834,3807.9,3807.5,2.62639422]
[1760209487103,0.4522,3807.8,3807.7,2.62625732]
[1760209487261,0.1312,3807.9,3807.8,2.62618835]
[1760209488489,0.1312,3807.9,3807.6,2.62625887]
[1760209488694,0.1312,3807.9,3807.8,2.62618835]
[1760209489303,0.3491,3807.9,3807.3,0.1312]
[1760209489459,0.8013,3807.9,3807.3,2.7576832]
[1760209489789,0.8013,3807.9,3807.8,2.62618835]
[1760209490592,0.657,3808.4,3807.8,0.53851933]
[1760209490796,0.657,3808.4,3808.3,2.62584355]
[1760209494393,0.657,3808.4,3808.3,4.54584355]
[1760209494593,0.657,3808.4,3808.3,5.45530612]
[1760209494794,0.657,3808.4,3808.3,5.44204355]
[1760209494976,0.657,3808.4,3808.3,6.48284631]
[1760209495793,0.657,3808.4,3808.3,6.22024631]
[1760209496806,1e-08,3808.4,3808.3,6.22024631]
[1760209497602,1e-08,3808.8,3808.3,6.48284631]
[1760209497801,0.657,3810.4,3810.3,2.62440725]
[1760209500310,0.657,3810.4,3809.4,2.62508531]
[1760209500511,0.46230581,3810.3,3808.6,1.92]
[1760209500703,0.46230581,3810.3,3809.7,2.62481675]
[1760209501026,0.46230581,3810.3,3808.7,1.38858724]
[1760209501314,0.657,3810.4,3810.3,2.62446526]
[1760209502814,0.657,3810.4,3810.3,3.25806526]
[1760209503014,0.001,3810.8,3810.7,3.25778978]
[1760209503213,0.001,3810.8,3810.7,3.58356876]
[1760209504005,0.001,3810.8,3810.7,5.50356876]
[1760209504417,0.001,3810.8,3810.7,5.63476876]
[1760209505592,0.001,3810.8,3810.7,5.50356876]
[1760209511018,0.03278172,3813.1,3812.7,2.62281322]
[1760209511208,0.656,3813.0,3812.9,2.62267565]
[1760209512604,0.656,3813.0,3812.9,3.26945902]
[1760209512904,0.656,3813.0,3812.9,5.17627565]
[1760209513405,0.656,3813.0,3812.9,3.25627565]
[1760209515602,0.656,3813.0,3812.9,3.38667565]
[1760209515803,0.656,3813.0,3812.9,4.06240339]
[1760209516712,0.656,3813.0,3812.9,4.04922002]
[1760209516907,0.001,3815.7,3813.9,0.6336]
[1760209516908,0.656,3814.9,3813.9,0.6336]
[1760209517110,0.656,3814.9,3814.8,3.2549694]
[1760209519835,0.656,3814.9,3814.7,2.62141949]
[1760209520146,0.656,3814.9,3814.7,1.92]
[1760209520647,0.656,3814.9,3814.7,2.62139096]
[1760209521024,0.656,3814.9,3814.8,3.2681208]
[1760209521358,0.656,3814.9,3814.8,3.2549694]
[1760209521537,0.656,3814.9,3814.8,5.1749694]
[1760209522828,0.656,3814.9,3814.8,5.95461271]
[1760209524617,0.656,3814.9,3814.8,5.1749694]
[1760209525565,0.656,3814.9,3814.8,4.5413694]
[1760209525855,0.656,3814.9,3814.8,5.3053694]
[1760209526955,0.656,3814.9,3814.8,5.1749694]
[1760209527155,0.001,3815.7,3815.1,3.25476327]
[1760209527356,0.001,3815.7,3815.1,4.48850199]
[1760209527967,0.001,3815.7,3815.1,6.40850199]
[1760209529035,0.001,3815.7,3815.1,5.17476327]
[1760209530958,0.001,3815.3,3815.1,5.17476327]
[1760209532337,1e-08,3815.7,3815.6,2.62081979]
[1760209532550,1e-08,3815.7,3815.6,5.17441979]
[1760209532949,1e-08,3815.7,3815.6,5.83041979]
[1760209535272,0.001,3817.0,3816.4,3.25387041]
[1760209535445,0.001,3817.0,3816.4,5.49925745]
[1760209535645,0.001,3817.0,3816.9,3.25352716]
[1760209535856,0.001,3817.0,3816.9,5.17352716]
[1760209536380,0.001,3817.0,3816.9,5.82952716]
[1760209536982,0.001,3817.0,3816.9,5.95992716]
[1760209537154,0.001,3817.0,3816.9,6.81792168]
[1760209538982,0.608,3817.6,3817.5,3.25311538]
[1760209539187,0.608,3817.6,3817.5,5.17311538]
[1760209540101,0.608,3817.6,3817.5,1.92]
[1760209540598,0.608,3817.6,3817.2,4.5397204]
[1760209540798,0.608,3817.6,3817.2,2.6197204]
[1760209540960,0.74123414,3817.6,3817.4,1.92]
[1760209541160,0.74123414,3817.6,3817.4,2.61957703]
[1760209541496,0.74123414,3817.6,3817.4,1.92]
[1760209541700,0.74123414,3817.6,3817.1,0.6336]
[1760209541886,1.21163414,3817.6,3817.1,0.6336]
[1760209542195,1.21163414,3817.6,3816.6,2.62011824]
[1760209542196,2.61958588,3817.4,3816.6,2.62011824]
[1760209542489,2.61977902,3817.2,3815.8,0.78814835]
[1760209542689,3.12298824,3817.1,3816.2,2.62039436]
[1760209542892,0.4704,3817.0,3815.5,0.78821772]
[1760209543195,0.03274908,3816.9,3815.7,1.92]
[1760209543392,3.09000902,3817.4,3815.8,0.6336]
[1760209543592,0.41731731,3817.3,3815.8,0.64672736]
[1760209543798,0.41731731,3817.3,3816.5,2.62014523]
[1760209544489,0.4704,3817.4,3815.5,2.70821772]
[1760209544490,0.0327448,3817.4,3816.6,0.01311638]
[1760209544661,0.14770755,3817.5,3817.1,2.61972192]
[1760209544863,0.03274136,3817.8,3817.1,2.61972192]
[1760209545089,0.03274136,3817.8,3817.2,2.61972007]
[1760209545306,0.4704,3817.5,3816.2,0.6336]
[1760209545519,0.50314394,3817.5,3816.7,3.25365443]
[1760209545803,2.62028918,3816.4,3815.3,2.6209723]
[1760209545964,0.50315423,3816.3,3814.1,2.6218505]
[1760209546298,0.50315423,3816.3,3814.7,1.92]
[1760209546608,0.50315423,3816.3,3815.0,1.92]
[1760209546808,0.50315423,3816.3,3815.1,0.0131387]
[1760209547106,0.50315423,3816.3,3815.5,2.62082489]
[1760209547308,0.31234389,3816.2,3814.8,2.5536]
[1760209547507,0.03275595,3816.1,3815.4,2.62092646]
[1760209547806,0.78274389,3816.2,3815.1,0.01313732]
[1760209547966,0.4704,3816.7,3815.2,0.6336]
[1760209548296,0.4704,3817.2,3815.5,0.6336]
[1760209548598,2.65254134,3817.1,3816.2,2.62040456]
[1760209548799,0.4704,3817.0,3814.4,2.62160188]
[1760209548965,0.1304,3816.4,3815.7,0.1304]
[1760209549166,0.03275423,3816.3,3814.7,2.62141976]
[1760209549365,0.1304,3815.9,3815.3,0.1304]
[1760209549607,0.3616,3815.9,3815.3,0.1304]
[1760209549784,0.03275853,3815.8,3815.3,2.75141464]
[1760209549976,0.03275853,3815.8,3815.3,0.1304]
[1760209550301,0.03275853,3815.8,3815.7,0.002]
[1760209551904,0.16315767,3815.9,3815.7,0.002]
[1760209552502,0.1304,3815.9,3815.8,2.62068242]
[1760209552802,0.1304,3816.2,3815.7,2.63586449]
[1760209553371,0.1304,3816.2,3816.1,2.6204764]
[1760209553669,0.1304,3816.4,3815.9,0.6336]
[1760209554010,0.1304,3816.9,3816.6,2.62007132]
[1760209554186,0.1304,3816.9,3816.7,0.01311809]
[1760209554370,0.1304,3817.2,3816.6,2.75052733]
[1760209554576,0.1304,3817.2,3816.7,0.01311603]
[1760209555104,0.1304,3817.2,3817.0,2.61980954]
[1760209555412,0.1304,3817.2,3816.8,2.61993707]
[1760209555574,0.1304,3817.2,3816.9,2.61991257]
[1760209556170,0.1304,3817.2,3817.0,2.61984613]
[1760209556396,0.1304,3817.2,3817.1,2.61978989]
[1760209556591,0.001,3817.5,3817.2,2.61970388]
[1760209556841,0.001,3817.5,3817.4,2.61958401]
[1760209557721,0.001,3817.5,3817.3,2.61958508]
[1760209557896,0.001,3817.5,3817.3,2.61963396]
[1760209558095,0.001,3817.5,3816.7,0.6336]
[1760209558415,0.001,3817.5,3817.4,2.61958401]
[1760209561130,0.4396,3817.5,3816.1,4.5404764]
[1760209561289,0.0327448,3817.4,3817.0,1.92]
[1760209561642,0.0327448,3817.4,3817.0,4.53985166]
[1760209561794,0.4386,3817.3,3816.8,2.6199799]
[1760209562107,0.03374394,3817.5,3817.0,2.61985582]
[1760209562418,0.03374394,3817.5,3816.9,2.61992557]
[1760209562742,3.09092881,3817.4,3816.6,1.92]
[1760209562888,0.4386,3817.3,3816.5,2.62014908]
[1760209563204,0.03274651,3817.2,3816.7,2.62006175]
[1760209563400,0.001,3817.5,3817.2,2.61966201]
[1760209563601,0.001,3817.5,3817.2,2.61965461]
[1760209563803,0.001,3817.5,3817.4,2.61958401]
[1760209564457,0.001,3817.5,3817.3,2.61963583]
[1760209565170,0.001,3817.5,3816.9,2.61986233]
[1760209565353,0.47234394,3817.5,3817.1,2.61978215]
[1760209565560,0.4386,3817.4,3817.2,2.61972002]
[1760209565963,0.001,3817.5,3817.3,2.61960822]
[1760209566679,0.1314,3817.5,3817.3,2.61960822]
[1760209566881,0.1314,3817.5,3817.2,2.61971289]
[1760209567174,0.1314,3817.5,3817.0,2.61984684]
[1760209567175,0.16414394,3817.5,3817.0,2.61985852]
[1760209567374,0.4386,3817.4,3817.1,2.61978944]
[1760209567550,0.50338939,3817.5,3817.1,2.61978944]
[1760209567750,0.4386,3817.4,3817.1,2.61978944]
[1760209568185,0.50338939,3817.5,3816.9,0.1304]
[1760209568354,0.4386,3817.3,3816.9,2.75027067]
[1760209568554,0.4386,3817.2,3816.9,0.1304]
[1760209568757,0.4386,3817.1,3816.8,2.61998108]
[1760209569266,0.1304,3817.3,3816.6,2.75053262]
[1760209569267,0.4386,3817.0,3816.6,0.1304]
[1760209569583,0.4386,3816.9,3816.6,2.7505025]
[1760209569785,0.4386,3816.8,3816.6,2.7505025]
[1760209570694,0.4386,3816.7,3815.6,4.4835187]
[1760209570863,0.569,3816.7,3816.1,0.1304]
[1760209571056,0.4386,3816.7,3815.5,0.78821565]
[1760209571253,0.03274823,3817.0,3816.3,2.62028373]
[1760209571457,0.03274823,3817.0,3816.2,2.62038433]
[1760209571657,0.4386,3816.9,3816.2,2.62038433]
[1760209572057,0.03374394,3817.5,3815.8,2.62066453]
[1760209572308,3.38442748,3817.4,3815.7,0.002]
[1760209572507,0.03274565,3817.3,3815.7,0.002]
[1760209572672,2.62029878,3816.4,3815.7,0.002]
[1760209572866,0.47135423,3816.3,3815.7,1.922]
[1760209573061,0.4386,3816.2,3815.7,0.002]
[1760209573261,0.2318,3815.8,3815.7,0.002]
[1760209573798,0.03275338,3816.4,3815.7,0.002]
[1760209574098,0.03275338,3816.4,3815.9,2.62059178]
[1760209574262,0.03275338,3816.4,3816.0,2.62053447]
[1760209574604,2.24622524,3817.4,3815.8,0.01312873]
[1760209574605,0.0327508,3816.7,3815.8,0.01312873]
[1760209574810,0.0327508,3816.7,3816.1,2.6204289]
[1760209575107,0.0327508,3816.7,3816.2,2.62040234]
[1760209575261,0.0327508,3816.7,3816.1,2.6204591]
[1760209575460,0.4386,3816.6,3815.9,2.62060065]
[1760209575668,0.03275252,3816.5,3815.9,2.62060065]
[1760209575877,0.03275252,3816.5,3815.7,2.62269002]
[1760209576070,0.03275252,3816.5,3815.7,0.002]
[1760209576484,0.03275252,3816.5,3816.0,2.62048855]
[1760209576687,0.4386,3816.5,3816.1,2.6204748]
[1760209576885,0.0327508,3816.7,3816.3,2.62033907]
[1760209577702,0.0327508,3816.7,3816.2,2.62040424]
[1760209577703,0.4713508,3816.7,3816.2,2.62040424]
[1760209577909,0.4386,3817.1,3815.8,0.6336]
[1760209578217,0.03274823,3817.0,3816.4,2.62026736]
[1760209579114,1.0051937,3817.1,3816.5,2.62014518]
[1760209579273,0.03274823,3817.0,3816.5,2.62014518]
[1760209579681,0.03274823,3817.0,3816.3,2.63339614]
[1760209579882,0.03274823,3817.0,3816.3,2.62027667]
[1760209580286,0.4386,3816.9,3816.3,2.62027667]
[1760209581013,0.4386,3816.9,3815.8,0.88916]
[1760209581014,0.1304,3816.7,3816.0,0.1304]
[1760209581180,0.1304,3816.7,3815.7,1.86471146]
[1760209581181,2.62022301,3816.5,3815.7,0.002]
[1760209581372,2.62039946,3816.3,3815.7,0.002]
[1760209581572,0.03275509,3816.2,3815.7,0.002]
[1760209581800,0.03275509,3816.2,3815.7,2.62273857]
[1760209582004,0.4386,3816.1,3815.7,2.62273857]
[1760209582208,0.4386,3816.0,3815.7,2.62273857]
[1760209583116,0.4386,3816.0,3815.8,2.62068023]
[1760209583323,0.47135423,3816.3,3815.8,2.62068023]
[1760209583500,0.4386,3816.2,3815.8,2.62068023]
[1760209583821,0.03275595,3816.1,3815.8,2.62068023]
[1760209584022,0.4386,3816.0,3815.7,0.002]
[1760209584322,0.4386,3816.0,3815.7,2.62274864]
[1760209585095,0.655,3815.9,3815.7,2.62274864]
[1760209585502,0.655,3815.9,3815.8,0.002]
[1760209587521,0.655,3815.9,3815.8,2.62268242]
[1760209587709,0.655,3815.9,3815.8,5.45189082]
[1760209587916,0.655,3815.9,3815.8,5.43875728]
[1760209588399,0.655,3815.9,3815.8,7.30146874]
[1760209588730,0.655,3815.9,3815.8,5.43875728]
[1760209589225,0.655,3815.9,3815.8,5.17628242]
[1760209589793,0.655,3815.9,3815.8,4.54268242]
[1760209590225,0.655,3815.9,3815.8,0.002]
[1760209590439,1.3358,3815.9,3815.8,0.002]
[1760209591008,3.95641374,3815.9,3815.8,0.002]
[1760209591207,3.95641374,3815.9,3815.7,0.002]
[1760209591208,2.75108242,3815.8,3815.7,0.002]
[1760209591705,3.21698242,3815.8,3815.7,0.002]
[1760209591909,0.5963,3815.8,3815.7,0.002]
[1760209592213,0.62905853,3815.8,3815.7,0.002]
[1760209592620,0.1304,3815.8,3815.7,0.002]
[1760209593134,0.16315853,3815.8,3815.7,0.002]
[1760209593335,0.62905853,3815.8,3815.7,0.002]
[1760209593538,1.04101165,3815.8,3815.7,0.002]
[1760209593837,3.66169407,3815.8,3815.7,0.002]
[1760209594042,2.62084458,3815.6,3815.4,0.002]
[1760209594240,2.62088848,3815.5,3815.4,0.002]
[1760209594438,3.11954958,3815.5,3815.4,0.002]
[1760209594608,3.73477496,3815.5,3815.4,0.002]
[1760209595126,1.11388648,3815.5,3815.4,0.002]
[1760209595333,3.73477496,3815.5,3815.4,0.002]
[1760209597150,1.11388648,3815.5,3815.4,0.002]
[1760209597528,0.4986611,3815.5,3815.4,0.002]
[1760209599245,0.0327611,3815.5,3815.4,0.002]
[1760209599445,0.1304,3815.5,3815.4,0.002]
[1760209599820,0.5963,3815.5,3815.4,0.002]
[1760209601667,0.1304,3815.5,3815.4,0.002]
[1760209602033,1.3113,3815.9,3815.6,2.62078258]
[1760209602034,0.655,3815.9,3815.6,2.62078258]
[1760209602239,0.1304,3815.8,3815.7,2.6207511]
[1760209602569,0.655,3815.9,3815.8,2.62068242]
[1760209604146,1.0964,3815.9,3815.4,0.1324]
[1760209604344,0.655,3815.9,3815.4,0.1324]
[1760209604656,0.4414,3815.8,3815.5,2.62086217]
[1760209605259,0.4414,3815.8,3815.4,0.1324]
[1760209605432,0.4414,3815.7,3815.4,0.1324]
[1760209605633,0.91895767,3815.9,3815.5,2.62088701]
[1760209605835,0.4414,3815.8,3815.4,0.1324]
[1760209606041,0.16315938,3815.7,3815.4,0.002]
[1760209606443,0.4414,3815.6,3815.4,0.002]
[1760209606846,0.4414,3815.5,3815.4,0.002]
[1760209608561,3.09504958,3815.5,3815.4,0.002]
[1760209608735,3.66662411,3815.5,3815.4,0.002]
[1760209609061,1.04573563,3815.5,3815.4,0.002]
[1760209609657,0.4741611,3815.5,3815.4,0.002]
[1760209610833,3.09504958,3815.5,3815.4,0.002]
[1760209615057,0.4741611,3815.5,3815.4,0.002]
[1760209615940,0.0327611,3815.5,3815.4,0.002]
[1760209616145,0.47415853,3815.8,3815.4,0.002]
[1760209616374,1.13430648,3815.8,3815.4,0.002]
[1760209616572,0.69290648,3815.8,3815.4,0.002]
[1760209616892,0.4414,3815.7,3815.4,0.002]
[1760209617075,0.03276024,3815.6,3815.4,0.002]
[1760209617664,0.47416024,3815.6,3815.4,0.002]
[1760209617864,0.4414,3815.5,3815.4,0.002]
[1760209618874,0.47415853,3815.8,3815.4,0.002]
[1760209619289,0.4414,3815.5,3815.4,0.002]
[1760209620141,3.06228848,3815.5,3815.4,0.002]
[1760209620564,0.4414,3815.5,3815.4,0.002]
[1760209621367,3.06228848,3815.5,3815.4,0.002]
[1760209621565,3.63396912,3815.5,3815.4,0.002]
[1760209627972,5.91634722,3815.5,3815.4,0.002]
[1760209628176,5.91634722,3815.5,3815.3,0.002]
[1760209628177,5.17574861,3815.4,3815.3,0.002]
[1760209628393,5.17574861,3815.4,3815.0,0.002]
[1760209628394,4.54240968,3815.1,3815.0,0.002]
[1760209628610,4.54240968,3815.1,3814.9,0.002]
[1760209628611,4.67287838,3815.0,3814.9,0.002]
[1760209628982,5.12347838,3815.0,3814.9,0.002]
[1760209629379,5.75707838,3815.0,3814.9,0.002]
[1760209631014,5.12223197,3815.0,3814.9,0.002]
[1760209632215,5.12342341,3815.0,3814.9,0.002]
[1760209632409,6.44112306,3815.0,3814.9,0.002]
[1760209633619,7.07472306,3815.0,3814.9,0.002]
[1760209635218,6.44112306,3815.0,3814.9,0.002]
[1760209637916,7.07472306,3815.0,3814.9,0.002]
[1760209638499,7.07353162,3815.0,3814.9,0.002]
[1760209638688,6.43993162,3815.0,3814.9,0.002]
[1760209642301,6.44115054,3815.0,3814.9,0.002]
[1760209645816,7.07475054,3815.0,3814.9,0.002]
[1760209646019,5.17639448,3814.7,3814.6,1e-08]
[1760209646316,6.16297645,3814.7,3814.6,1e-08]
[1760209646527,6.61357645,3814.7,3814.6,1e-08]
[1760209647146,6.61357645,3814.7,3812.6,0.002]
[1760209647147,2.62253809,3813.1,3812.6,0.002]
[1760209647296,3.31131981,3813.1,3812.6,0.002]
[1760209647498,2.62281322,3812.7,3812.6,0.002]
[1760209647733,2.62281322,3812.7,3811.4,2.62369988]
[1760209647734,2.62310954,3812.3,3811.8,0.10522286]
[1760209647897,2.62292813,3812.6,3811.8,0.10522286]
[1760209647898,0.03278946,3812.2,3811.8,0.10522286]
[1760209648099,0.4506,3812.1,3810.6,1.88010711]
[1760209648298,0.4506,3812.1,3809.9,3.27278938]
[1760209648299,2.62364416,3811.5,3810.8,0.4506]
[1760209648512,2.62390033,3811.2,3810.8,0.4506]
[1760209648712,0.48339892,3811.1,3810.2,2.62447468]
[1760209649046,0.48339892,3811.1,3810.0,0.78948095]
[1760209649047,3.07464998,3811.0,3810.0,0.78948095]
[1760209649198,3.07464998,3811.0,3809.9,2.62472997]
[1760209649199,0.48340065,3810.9,3809.9,2.62472997]
[1760209649396,2.62419222,3810.7,3809.0,1.89210711]
[1760209649627,19.62516997,3811.4,3809.6,3.41445926]
[1760209649628,4.09555288,3810.6,3809.6,3.41445926]
[1760209649829,1.00148252,3810.6,3809.7,1.92]
[1760209649999,1.00148252,3810.6,3809.2,2.62521607]
[1760209650000,0.4698,3810.5,3809.2,2.62521607]
[1760209650202,0.50260495,3810.4,3809.5,0.78957238]
[1760209650406,0.50260495,3810.4,3809.7,1.92]
[1760209650825,0.84808636,3810.3,3809.4,2.62507997]
[1760209651129,0.50260667,3810.2,3809.5,2.62501362]
[1760209651347,0.4698,3810.4,3809.7,2.62485818]
[1760209651526,0.03280581,3810.3,3809.7,2.62485818]
[1760209651705,0.03280581,3810.3,3810.0,2.62461458]
[1760209651899,0.4698,3810.4,3809.7,2.62485818]
[1760209652130,0.03280581,3810.3,3809.9,2.62468184]
[1760209652334,0.03280581,3810.3,3809.8,0.26248582]
[1760209652535,0.03280581,3810.3,3810.0,2.62467175]
[1760209653041,0.50260581,3810.3,3809.9,2.62472903]
[1760209654456,0.50260581,3810.3,3809.2,1.92]
[1760209654457,0.50260581,3810.3,3810.0,2.62466783]
[1760209654735,0.50260581,3810.3,3809.9,2.62473406]
[1760209654921,0.50260581,3810.3,3810.0,2.62466747]
[1760209655125,0.656,3810.6,3810.2,2.62453414]
[1760209655429,0.656,3810.6,3810.3,2.62446299]
[1760209655628,0.4698,3810.5,3810.2,2.62452599]
[1760209655939,0.50260495,3810.4,3810.0,2.62662109]
[1760209656140,0.4698,3810.3,3810.0,2.62662109]
[1760209656303,0.03280409,3810.5,3810.1,2.62458921]
[1760209657015,0.50260409,3810.5,3810.1,2.62458921]
[1760209657212,0.1312,3810.4,3810.1,2.62458921]
[1760209657417,0.601,3810.4,3810.1,2.62458921]
[1760209657626,0.601,3810.4,3810.0,0.002]
[1760209657627,0.1312,3810.4,3810.0,0.002]
[1760209658542,0.1312,3810.4,3810.0,2.62666477]
[1760209659054,0.1312,3810.4,3810.0,0.002]
[1760209659568,2.62460302,3810.1,3810.0,0.002]
[1760209659848,2.65741055,3810.1,3810.0,0.002]
[1760209660067,3.12721055,3810.1,3810.0,0.002]
[1760209662856,0.50260753,3810.1,3810.0,0.002]
[1760209664757,3.12721055,3810.1,3810.0,0.002]
[1760209666248,0.50260753,3810.1,3810.0,0.002]
[1760209666447,3.12721055,3810.1,3810.0,0.002]
[1760209666646,3.43993161,3810.1,3810.0,0.002]
[1760209666834,0.03280753,3810.1,3810.0,0.002]
[1760209667161,0.4522,3810.1,3810.0,0.002]
[1760209668036,3.10961055,3810.1,3810.0,0.002]
[1760209670727,2.62473111,3810.0,3809.2,2.62519092]
[1760209670967,0.03280926,3809.9,3809.4,2.62501837]
[1760209671135,0.03280926,3809.9,3809.3,2.62514552]
[1760209671335,0.03280926,3809.9,3809.4,2.62507716]
[1760209671662,0.03280926,3809.9,3809.4,0.52503692]
[1760209671829,0.656,3810.6,3810.0,2.62462161]
[1760209672030,0.03280409,3810.5,3809.5,0.21904051]
[1760209672355,0.656,3810.6,3810.5,2.62432751]
[1760209672665,0.656,3811.5,3810.0,0.6336]
[1760209672666,0.657,3810.9,3810.0,0.6336]
[1760209672839,0.657,3810.9,3810.2,0.6336]
[1760209673031,0.657,3810.9,3810.8,2.62412091]
[1760209673870,0.657,3810.9,3810.8,2.82992091]
[1760209674941,0.657,3810.9,3810.8,2.62412091]
[1760209675182,0.657,3810.9,3810.3,2.87976442]
[1760209675340,0.657,3810.9,3810.3,0.25536]
[1760209675341,0.4522,3810.8,3810.3,0.25536]
[1760209675674,0.03280237,3810.7,3810.0,2.62666804]
[1760209675968,0.03280237,3810.7,3810.3,1.92]
[1760209676270,0.4522,3810.6,3810.0,0.002]
[1760209676471,0.03280409,3810.5,3810.0,0.002]
[1760209676675,0.03280409,3810.5,3810.0,2.62664884]
[1760209676872,0.48500409,3810.5,3810.0,2.62664884]
[1760209677179,0.03280409,3810.5,3810.0,0.71915198]
[1760209677476,0.68980065,3810.9,3810.4,2.62439022]
[1760209677679,1.14200065,3810.9,3810.4,2.62439022]
[1760209677977,1.14200065,3810.9,3810.1,2.62460302]
[1760209678181,1.14200065,3810.9,3810.4,2.62438846]
[1760209678340,0.4522,3810.8,3810.4,2.62438846]
[1760209678537,0.03280237,3810.7,3810.4,2.62438846]
[1760209678937,0.03280237,3810.7,3810.0,0.002]
[1760209679142,0.657,3810.9,3810.4,2.62434951]
[1760209679385,0.4359,3810.8,3810.2,2.62453414]
[1760209679548,3.09283017,3810.8,3810.0,0.002]
[1760209679949,3.09283017,3810.8,3810.0,2.62666689]
[1760209680180,2.62419932,3810.7,3810.0,0.002]
[1760209680389,0.40779331,3810.6,3810.0,0.002]
[1760209680579,2.62433477,3810.5,3810.0,0.002]
[1760209680788,0.1312,3810.2,3810.0,0.002]
[1760209681188,3.09331055,3810.1,3810.0,0.002]
[1760209684079,0.46870753,3810.1,3810.0,0.002]
[1760209684261,3.09331055,3810.1,3810.0,0.002]
[1760209685003,0.46870753,3810.1,3810.0,0.002]
[1760209685292,0.4359,3810.1,3810.0,0.002]
[1760209686392,0.03280667,3810.2,3810.0,0.002]
[1760209686592,0.4359,3810.7,3810.1,2.62460302]
[1760209686763,0.03280323,3810.6,3810.0,0.01522846]
[1760209686964,0.03280151,3810.8,3810.0,0.002]
[1760209687202,0.03280151,3810.8,3810.4,2.62438998]
[1760209687496,0.03280151,3810.8,3810.4,2.62438681]
[1760209687790,0.03280151,3810.8,3810.0,0.002]
[1760209687993,0.03280151,3810.8,3810.2,2.62447488]
[1760209688185,0.03280151,3810.8,3810.2,0.26264749]
[1760209688563,0.03280151,3810.8,3810.2,2.88714308]
[1760209688984,0.03280151,3810.8,3810.3,2.62446526]
[1760209689390,0.03280151,3810.8,3810.2,0.26264749]
[1760209689391,0.03280151,3810.8,3810.4,2.62438385]
[1760209689591,0.46870151,3810.8,3810.3,2.62445204]
[1760209689793,0.46870151,3810.8,3810.2,2.88716342]
[1760209689979,0.46870151,3810.8,3810.2,2.62451593]
[1760209690387,2.62431518,3810.6,3810.0,0.002]
[1760209690697,0.03280409,3810.5,3810.0,0.002]
[1760209690997,2.62439638,3810.4,3810.0,0.002]
[1760209691301,2.65727421,3810.3,3810.0,0.002]
[1760209691605,3.09317421,3810.3,3810.0,0.002]
[1760209691897,0.4359,3810.2,3810.0,0.002]
[1760209692102,0.03280753,3810.1,3810.0,0.002]
[1760209692267,0.46870753,3810.1,3810.0,0.002]